bitfinex-derivatives/quotes_BTCF0:USTF0_20251129
["timestamp","ask_amount","ask_price","bid_price","bid_amount"]
[1764429980311,0.0207902,90967.0,90966.0,0.04323492]
[1764429980615,0.32009663,90967.0,90966.0,0.04323492]
[1764429980811,0.32009663,90967.0,90966.0,0.05795174]
[1764429981605,0.54009663,90967.0,90966.0,0.05795174]
[1764429982012,0.54009663,90967.0,90966.0,0.06295174]
[1764429982217,0.54109663,90967.0,90966.0,0.06295174]
[1764429982518,0.33109663,90967.0,90966.0,0.06295174]
[1764429983315,0.33109663,90967.0,90966.0,0.05795174]
[1764429983510,0.33109663,90967.0,90966.0,0.06395174]
[1764429983922,0.57109663,90967.0,90966.0,0.06295174]
[1764429984618,0.23109663,90967.0,90966.0,0.06395174]
[1764429984818,0.23009663,90967.0,90966.0,0.06395174]
[1764429985017,0.23009663,90967.0,90966.0,0.05795174]
[1764429985319,0.50009663,90967.0,90966.0,0.06295174]
[1764429985727,0.50109663,90967.0,90966.0,0.06295174]
[1764429986521,0.25109663,90967.0,90966.0,0.06295174]
[1764429986720,0.001,90967.0,90966.0,0.06295174]
[1764429987023,0.0059,90967.0,90966.0,0.06295174]
[1764429987416,0.0108,90967.0,90966.0,0.06295174]
[1764429989921,0.4608,90967.0,90966.0,0.06295174]
[1764429990330,0.5782084,90967.0,90966.0,0.01988174]
[1764429991216,0.5782084,90967.0,90966.0,0.00516492]
[1764429991417,0.0098,90955.0,90954.0,0.01322]
[1764429991622,0.0207921,90951.0,90949.0,0.0588427]
[1764429991822,0.0098,90948.0,90947.0,0.1019127]
[1764429992024,0.3898,90948.0,90947.0,0.1019127]
[1764429992225,0.51605015,90948.0,90947.0,0.1019127]
[1764429992423,0.51605015,90948.0,90945.0,0.0588427]
[1764429992424,0.0098,90946.0,90945.0,0.0588427]
[1764429992624,0.0098,90943.0,90942.0,0.02842547]
[1764429992927,0.3198,90943.0,90942.0,0.07149547]
[1764429994033,0.3198,90943.0,90942.0,0.07949547]
[1764429994238,0.31,90943.0,90942.0,0.07949547]
[1764429994423,0.31,90943.0,90942.0,0.13833817]
[1764429994621,0.0109923,90950.0,90947.0,0.0109926]
[1764429994821,0.0807923,90950.0,90949.0,0.04307]
[1764429995321,0.0207923,90950.0,90949.0,0.04307]
[1764429995629,0.4107923,90950.0,90949.0,0.04307]
[1764429996030,0.4107923,90950.0,90949.0,0.04807]
[1764429996231,0.3998,90950.0,90949.0,0.04807]
[1764429997125,0.0898,90950.0,90949.0,0.04807]
[1764429997326,0.4298,90950.0,90949.0,0.04807]
[1764429998232,0.0898,90950.0,90949.0,0.04807]
[1764430001533,0.0098,90950.0,90949.0,0.04807]
[1764430005035,0.00506492,90957.0,90956.0,0.04471]
[1764430005232,0.42996492,90957.0,90956.0,0.04471]
[1764430005433,0.5556848,90957.0,90956.0,0.04471]
[1764430005629,0.0098,90955.0,90954.0,0.03473]
[1764430005937,0.0098,90950.0,90949.0,0.005]
[1764430006132,0.0098,90945.0,90944.0,0.0557029]
[1764430006338,0.0398,90945.0,90944.0,0.0557029]
[1764430006539,0.13650841,90945.0,90944.0,0.0557029]
[1764430008337,0.13650841,90945.0,90944.0,0.1205456]
[1764430008835,0.13650841,90945.0,90944.0,0.1095527]
[1764430009536,0.51650841,90945.0,90944.0,0.02774]
[1764430009740,0.51650841,90945.0,90944.0,0.006]
[1764430020340,0.51650841,90945.0,90944.0,0.05071]
[1764430021440,0.51650841,90945.0,90944.0,0.006]
[1764430022150,0.51650841,90945.0,90944.0,0.05071]
[1764430025649,0.51650841,90945.0,90944.0,0.006]
[1764430030258,0.51650841,90945.0,90944.0,0.02774]
[1764430030950,0.51650841,90945.0,90944.0,0.05071]
[1764430031744,0.51650841,90945.0,90944.0,0.02774]
[1764430032351,0.51650841,90945.0,90944.0,0.006]
[1764430032553,0.51650841,90945.0,90944.0,0.02774]
[1764430032755,0.51650841,90945.0,90944.0,0.05071]
[1764430033167,0.51650841,90945.0,90944.0,0.006]
[1764430036252,0.0098,90939.0,90938.0,0.0588427]
[1764430036452,0.0098,90939.0,90930.0,0.01299]
[1764430036453,0.0098,90934.0,90933.0,0.0588427]
[1764430036653,0.0207943,90933.0,90932.0,0.0588427]
[1764430036957,0.51406039,90933.0,90932.0,0.0588427]
[1764430037664,0.51406039,90933.0,90931.0,0.0588427]
[1764430037860,0.0098,90932.0,90931.0,0.0588427]
[1764430038166,0.4398,90932.0,90931.0,0.0588427]
[1764430038367,0.56740885,90932.0,90931.0,0.0588427]
[1764430038565,0.56740885,90932.0,90931.0,0.0809427]
[1764430039060,0.56740885,90932.0,90931.0,0.1039527]
[1764430039259,0.56740885,90932.0,90931.0,0.1049527]
[1764430039658,0.56740885,90932.0,90931.0,0.1109527]
[1764430042969,0.56740885,90932.0,90931.0,0.0879427]
[1764430043365,0.56740885,90932.0,90931.0,0.0658427]
[1764430044075,0.56740885,90932.0,90931.0,0.05256]
[1764430045072,0.56740885,90932.0,90931.0,0.02955]
[1764430045269,0.56740885,90932.0,90931.0,0.007]
[1764430047977,0.020795,90927.0,90926.0,0.00027495]
[1764430048164,0.400795,90927.0,90926.0,0.00027495]
[1764430048471,0.51605545,90927.0,90926.0,0.00027495]
[1764430048864,0.51605545,90927.0,90926.0,0.02282495]
[1764430049371,0.51605545,90927.0,90926.0,0.04983495]
[1764430049869,0.51705545,90927.0,90926.0,0.04583495]
[1764430050270,0.51805545,90927.0,90926.0,0.04583495]
[1764430053579,0.51805545,90927.0,90926.0,0.00027495]
[1764430053775,0.51805545,90927.0,90926.0,0.04583495]
[1764430055872,0.51805545,90927.0,90926.0,0.02282495]
[1764430056273,0.51805545,90927.0,90926.0,0.04583495]
[1764430057878,0.51805545,90927.0,90926.0,0.00027495]
[1764430058983,0.020796,90919.0,90918.0,0.0361]
[1764430059173,0.400796,90919.0,90918.0,0.0361]
[1764430059374,0.51748655,90919.0,90918.0,0.05911]
[1764430059576,0.51748655,90919.0,90918.0,0.0749789]
[1764430061080,0.52048655,90919.0,90918.0,0.0749789]
[1764430064691,0.89048655,90919.0,90918.0,0.0749789]
[1764430065994,0.52969055,90919.0,90918.0,0.085975]
[1764430066189,0.378,90919.0,90918.0,0.085975]
[1764430066390,0.30339789,90919.0,90918.0,0.485975]
[1764430066590,0.02257492,90941.0,90940.0,0.04269]
[1764430066790,0.74420492,90941.0,90940.0,0.04269]
[1764430067091,0.61814358,90941.0,90940.0,0.04269]
[1764430067288,0.92814358,90941.0,90940.0,0.04269]
[1764430068194,0.93114358,90941.0,90940.0,0.04269]
[1764430068796,0.93314358,90941.0,90940.0,0.04269]
[1764430069795,0.93314358,90941.0,90936.0,0.01323]
[1764430069796,0.04404,90934.0,90933.0,0.0536842]
[1764430070001,0.74404,90934.0,90933.0,0.0536842]
[1764430070297,0.8682876,90934.0,90933.0,0.04269]
[1764430070891,0.05703,90930.0,90929.0,0.02132]
[1764430071096,0.82703,90930.0,90929.0,0.04269]
[1764430071289,0.95304903,90930.0,90929.0,0.04269]
[1764430071488,0.61304903,90930.0,90929.0,0.04269]
[1764430072201,0.61404903,90930.0,90929.0,0.04269]
[1764430072397,0.61704903,90930.0,90929.0,0.04269]
[1764430073396,0.57704903,90930.0,90929.0,0.05897812]
[1764430073597,0.61704903,90930.0,90929.0,0.05897812]
[1764430074806,0.61404903,90930.0,90929.0,0.05897812]
[1764430074991,0.57704903,90930.0,90929.0,0.05897812]
[1764430075196,0.60704903,90930.0,90929.0,0.05897812]
[1764430075498,0.57704903,90930.0,90929.0,0.05897812]
[1764430077695,0.98704903,90930.0,90929.0,0.03760812]
[1764430078598,0.74704903,90930.0,90929.0,0.05897812]
[1764430080408,0.57704903,90930.0,90929.0,0.05897812]
[1764430080710,0.96704903,90930.0,90929.0,0.05897812]
[1764430080911,0.72704903,90930.0,90929.0,0.05897812]
[1764430082508,0.96704903,90930.0,90929.0,0.05897812]
[1764430083005,0.64704903,90930.0,90929.0,0.05897812]
[1764430083200,0.63405903,90930.0,90929.0,0.05897812]
[1764430083411,0.56405903,90930.0,90929.0,0.05897812]
[1764430084510,0.56205903,90930.0,90929.0,0.05897812]
[1764430085412,0.56305903,90930.0,90929.0,0.05897812]
[1764430086205,0.41541,90930.0,90929.0,0.05897812]
[1764430086713,0.392,90930.0,90929.0,0.05897812]
[1764430086914,0.391,90930.0,90929.0,0.05897812]
[1764430087115,0.41641,90930.0,90929.0,0.05897812]
[1764430087510,0.41241,90930.0,90929.0,0.05897812]
[1764430087711,0.41441,90930.0,90929.0,0.05897812]
[1764430087915,0.43604,90930.0,90929.0,0.05897812]
[1764430088112,0.43404,90930.0,90929.0,0.05897812]
[1764430088716,0.44703,90930.0,90929.0,0.03760812]
[1764430088910,0.56661035,90930.0,90929.0,0.05897812]
[1764430089607,0.56761035,90930.0,90929.0,0.05897812]
[1764430090007,0.43504,90930.0,90929.0,0.05897812]
[1764430090219,0.43604,90930.0,90929.0,0.05897812]
[1764430091021,0.44903,90930.0,90929.0,0.05897812]
[1764430091310,0.57309162,90930.0,90929.0,0.01628812]
[1764430091514,0.04404,90928.0,90927.0,0.0109949]
[1764430091711,0.47404,90928.0,90927.0,0.0536849]
[1764430092710,0.47404,90928.0,90927.0,0.0323149]
[1764430093107,0.47404,90928.0,90927.0,0.0536849]
[1764430093313,0.47604,90928.0,90927.0,0.06865927]
[1764430095021,0.74604,90928.0,90927.0,0.06865927]
[1764430095221,0.74604,90928.0,90927.0,0.14731541]
[1764430095627,0.74604,90928.0,90927.0,0.09363051]
[1764430095820,0.74604,90928.0,90927.0,0.01497437]
[1764430096022,0.74604,90928.0,90926.0,0.0109951]
[1764430096315,0.04585,90927.0,90926.0,0.0109951]
[1764430096519,0.51433569,90927.0,90926.0,0.0109951]
[1764430096823,0.89433569,90927.0,90926.0,0.0109951]
[1764430098317,0.0566751,90926.0,90925.0,0.09322726]
[1764430098516,0.8566751,90926.0,90925.0,0.09322726]
[1764430098810,0.97604122,90926.0,90925.0,0.09322726]
[1764430099222,0.97604122,90926.0,90925.0,0.01457112]
[1764430099522,0.97604122,90926.0,90919.0,0.0548859]
[1764430099523,0.0676358,90920.0,90919.0,0.0548859]
[1764430099717,0.8276358,90920.0,90919.0,0.0321259]
[1764430100124,0.81664,90920.0,90919.0,0.0321259]
[1764430100822,0.81664,90920.0,90919.0,0.0548859]
[1764430101813,0.53664,90920.0,90919.0,0.0548859]
[1764430102417,0.53664,90920.0,90919.0,0.13362111]
[1764430102725,0.92327397,90920.0,90919.0,0.07873521]
[1764430103226,0.92327397,90920.0,90919.0,0.08973121]
[1764430105922,0.92327397,90920.0,90919.0,0.010996]
[1764430106717,0.92327397,90920.0,90919.0,0.032126]
[1764430107322,0.68327397,90920.0,90919.0,0.054886]
[1764430107724,0.55327397,90920.0,90919.0,0.054886]
[1764430109327,0.55327397,90920.0,90919.0,0.010996]
[1764430109724,0.056096,90919.0,90918.0,0.07873521]
[1764430109921,0.0451,90918.0,90917.0,0.07873521]
[1764430110119,0.8451,90918.0,90917.0,0.07873521]
[1764430110323,0.96054962,90918.0,90917.0,0.07873521]
[1764430110922,0.96054962,90918.0,90916.0,0.01462851]
[1764430110923,0.0560962,90917.0,90916.0,0.01462851]
[1764430111124,0.0560968,90912.0,90911.0,0.07873521]
[1764430111321,0.05797,90910.0,90909.0,0.07873521]
[1764430111516,0.92797,90910.0,90909.0,0.07873521]
[1764430111823,1.04577057,90910.0,90909.0,0.07873521]
[1764430112317,0.0451,90908.0,90907.0,0.0109974]
[1764430112513,0.8351,90908.0,90907.0,0.0109974]
[1764430112721,0.8351,90908.0,90907.0,0.0548874]
[1764430112722,0.95400272,90908.0,90907.0,0.0548874]
[1764430113027,0.64400272,90908.0,90907.0,0.0548874]
[1764430114329,0.54400272,90908.0,90907.0,0.0548874]
[1764430114627,0.54400272,90908.0,90907.0,0.06972565]
[1764430114828,0.54400272,90908.0,90907.0,0.07372565]
[1764430118536,0.02258,90908.0,90907.0,0.07372565]
[1764430118727,0.16258,90908.0,90907.0,0.07372565]
[1764430119129,0.1851,90908.0,90907.0,0.07372565]
[1764430122137,0.3951,90908.0,90907.0,0.07372565]
[1764430127035,0.3951,90908.0,90907.0,0.06272825]
[1764430127438,0.3951,90908.0,90907.0,0.03986825]
[1764430128129,0.3951,90908.0,90907.0,0.01883825]
[1764430128334,0.5159125,90908.0,90907.0,0.09753147]
[1764430129235,0.5159125,90908.0,90907.0,0.06217825]
[1764430129634,0.5159125,90908.0,90907.0,0.03986825]
[1764430130530,0.5159125,90908.0,90907.0,0.01883825]
[1764430130734,0.9459125,90908.0,90907.0,0.01883825]
[1764430134240,0.5159125,90908.0,90907.0,0.06217825]
[1764430134439,0.6559125,90908.0,90907.0,0.06217825]
[1764430134635,0.9459125,90908.0,90907.0,0.06217825]
[1764430135934,0.5259125,90908.0,90907.0,0.06217825]
[1764430137042,0.5159125,90908.0,90907.0,0.06217825]
[1764430137244,0.5159125,90908.0,90907.0,0.14089246]
[1764430137841,0.09,90908.0,90907.0,0.01883825]
[1764430138142,0.20179111,90920.0,90919.0,0.054336]
[1764430138444,0.15832225,90919.0,90918.0,0.0320261]
[1764430138634,0.75832225,90919.0,90918.0,0.0320261]
[1764430139038,0.05669,90915.0,90914.0,0.12209142]
[1764430139245,0.46669,90915.0,90914.0,0.0320266]
[1764430140042,0.46669,90915.0,90914.0,0.0543366]
[1764430141041,0.46669,90915.0,90914.0,0.0563366]
[1764430146339,0.4532,90915.0,90914.0,0.0563366]
[1764430147354,0.4319,90915.0,90914.0,0.0563366]
[1764430148354,0.0219,90915.0,90914.0,0.0563366]
[1764430149254,0.04336492,90921.0,90920.0,0.0543358]
[1764430149560,0.27016492,90921.0,90920.0,0.0676758]
[1764430149857,0.07336492,90921.0,90920.0,0.0676758]
[1764430152048,0.43336492,90921.0,90920.0,0.0676758]
[1764430153463,0.43336492,90921.0,90920.0,0.0543358]
[1764430153654,0.43336492,90921.0,90920.0,0.0320258]
[1764430154054,0.43336492,90921.0,90920.0,0.0542158]
[1764430156063,0.43336492,90921.0,90920.0,0.06849601]
[1764430156568,0.09336492,90921.0,90920.0,0.06849601]
[1764430156869,0.33336492,90921.0,90920.0,0.08229601]
[1764430157668,0.33336492,90921.0,90920.0,0.06849601]
[1764430163075,0.33336492,90921.0,90920.0,0.14713359]
[1764430165381,0.33336492,90921.0,90920.0,0.06849601]
[1764430167568,0.33336492,90921.0,90920.0,0.02527601]
[1764430167773,0.33336492,90921.0,90920.0,0.07066601]
[1764430168874,0.33336492,90921.0,90920.0,0.08346601]
[1764430169075,0.04336492,90921.0,90920.0,0.08346601]
[1764430170676,0.45336492,90921.0,90920.0,0.08346601]
[1764430175482,0.45336492,90921.0,90920.0,0.18105743]
[1764430175674,0.45336492,90921.0,90920.0,0.18205743]
[1764430175874,0.45336492,90921.0,90920.0,0.08446601]
[1764430176173,0.45336492,90921.0,90920.0,0.08346601]
[1764430177878,0.45336492,90921.0,90920.0,0.07066601]
[1764430178478,0.45436492,90921.0,90920.0,0.07066601]
[1764430178680,0.45436492,90921.0,90920.0,0.16913978]
[1764430178874,0.45336492,90921.0,90920.0,0.16913978]
[1764430179080,0.45436492,90921.0,90920.0,0.16913978]
[1764430179480,0.45336492,90921.0,90920.0,0.16913978]
[1764430179681,0.45436492,90921.0,90920.0,0.16913978]
[1764430180578,0.45436492,90921.0,90920.0,0.18193978]
[1764430181485,0.45336492,90921.0,90920.0,0.18193978]
[1764430182185,0.45336492,90921.0,90920.0,0.16913978]
[1764430184888,0.45436492,90921.0,90920.0,0.07066601]
[1764430192592,0.45436492,90921.0,90920.0,0.24406601]
[1764430194693,0.46806492,90921.0,90920.0,0.24406601]
[1764430196196,0.46806492,90921.0,90920.0,0.18768021]
[1764430196394,0.46806492,90921.0,90920.0,0.01428021]
[1764430196592,0.46806492,90921.0,90920.0,0.1734]
[1764430197397,0.46806492,90921.0,90920.0,0.25219046]
[1764430198086,0.46806492,90921.0,90920.0,0.24763046]
[1764430198493,0.0536258,90920.0,90919.0,0.07879046]
[1764430198693,0.4536258,90920.0,90919.0,0.07879046]
[1764430200495,0.4546258,90920.0,90919.0,0.07879046]
[1764430200994,0.44363,90920.0,90919.0,0.07879046]
[1764430201184,0.04263,90919.0,90918.0,0.07879046]
[1764430201491,0.81263,90919.0,90918.0,0.04379046]
[1764430201698,0.0207966,90914.0,90913.0,0.01384074]
[1764430201999,0.4398,90914.0,90913.0,0.0433]
[1764430203296,0.0098,90910.0,90909.0,0.0542971]
[1764430204691,0.0098,90910.0,90909.0,0.0562971]
[1764430208496,0.00016492,90921.0,90920.0,0.05662]
[1764430208903,0.0207938,90938.0,90937.0,0.0433]
[1764430209092,0.4507938,90938.0,90937.0,0.0433]
[1764430209492,0.4507938,90938.0,90937.0,0.02186]
[1764430209704,0.0098,90933.0,90932.0,0.05662]
[1764430209996,0.0098,90933.0,90924.0,0.01332]
[1764430209997,0.0098,90925.0,90924.0,0.03518]
[1764430210203,0.4098,90925.0,90924.0,0.03518]
[1764430210392,0.4098,90925.0,90924.0,0.05662]
[1764430211593,0.0098,90924.0,90923.0,0.00016492]
[1764430211901,0.4998,90924.0,90923.0,0.00016492]
[1764430212098,0.4098,90924.0,90923.0,0.04346492]
[1764430213002,0.4498,90924.0,90923.0,0.04346492]
[1764430213395,0.4498,90924.0,90923.0,0.00016492]
[1764430213794,0.4518,90924.0,90923.0,0.00016492]
[1764430214903,0.4118,90924.0,90923.0,0.00016492]
[1764430215406,0.4528,90924.0,90923.0,0.00016492]
[1764430215902,0.4538,90924.0,90923.0,0.01399423]
[1764430216102,0.4538,90924.0,90923.0,0.00016492]
[1764430216606,0.8638,90924.0,90923.0,0.00016492]
[1764430217398,0.4438,90924.0,90923.0,0.00016492]
[1764430217699,0.4438,90924.0,90923.0,0.04270492]
[1764430217901,0.4138,90924.0,90923.0,0.04270492]
[1764430218104,0.8238,90924.0,90923.0,0.00016492]
[1764430220509,0.0098,90911.0,90910.0,0.05726]
[1764430220695,0.0049,90911.0,90910.0,0.05726]
[1764430221097,0.0098,90911.0,90910.0,0.05726]
[1764430221900,0.0098,90911.0,90910.0,0.05826]
[1764430223101,0.3998,90911.0,90910.0,0.05826]
[1764430224210,0.3998,90911.0,90910.0,0.07150746]
[1764430228505,0.3998,90911.0,90910.0,0.08250456]
[1764430233413,0.00996492,90920.0,90919.0,0.054936]
[1764430233631,0.04996492,90920.0,90919.0,0.054936]
[1764430234506,0.05196492,90920.0,90919.0,0.054936]
[1764430235316,0.04706492,90920.0,90919.0,0.054936]
[1764430235715,0.00706492,90920.0,90919.0,0.054936]
[1764430235920,0.00216492,90920.0,90919.0,0.054936]
[1764430236312,0.00706492,90920.0,90919.0,0.054936]
[1764430236821,0.01196492,90920.0,90919.0,0.054936]
[1764430238825,0.00016492,90920.0,90919.0,0.055936]
[1764430239224,0.00016492,90920.0,90919.0,0.054936]
[1764430239424,0.0098,90939.0,90938.0,0.04394]
[1764430239618,0.1149,90939.0,90938.0,0.04394]
[1764430239822,0.11,90939.0,90938.0,0.04394]
[1764430240223,0.0098,90956.0,90955.0,0.05669]
[1764430240724,0.09,90956.0,90955.0,0.05669]
[1764430240925,0.00016492,90965.0,90964.0,0.04394]
[1764430241228,0.31996492,90965.0,90964.0,0.04394]
[1764430241731,0.16996492,90965.0,90964.0,0.0549305]
[1764430242024,0.17096492,90965.0,90964.0,0.0549305]
[1764430242323,0.43096492,90965.0,90964.0,0.0549305]
[1764430242723,0.00116492,90965.0,90964.0,0.0549305]
[1764430243128,0.00116492,90965.0,90964.0,0.13348648]
[1764430243421,0.00116492,90965.0,90964.0,0.0549305]
[1764430243622,0.00016492,90965.0,90964.0,0.0559305]
[1764430244029,0.00016492,90965.0,90964.0,0.1549305]
[1764430244225,0.00016492,90965.0,90964.0,0.1589305]
[1764430244820,0.00016492,90965.0,90964.0,0.0589305]
[1764430244821,0.00506492,90965.0,90964.0,0.0589305]
[1764430245225,0.00506492,90965.0,90964.0,0.0579305]
[1764430245226,0.00996492,90965.0,90964.0,0.0579305]
[1764430245424,0.00996492,90965.0,90964.0,0.2312905]
[1764430246728,0.00996492,90965.0,90964.0,0.2282905]
[1764430246933,0.00996492,90965.0,90964.0,0.2312905]
[1764430247232,0.00996492,90965.0,90964.0,0.24203761]
[1764430247532,0.00996492,90965.0,90964.0,0.24403761]
[1764430247829,0.00996492,90965.0,90964.0,0.24203761]
[1764430248135,0.00996492,90965.0,90964.0,0.24403761]
[1764430250136,0.00996492,90965.0,90964.0,0.24303761]
[1764430250526,0.00996492,90965.0,90964.0,0.24203761]
[1764430250723,0.00996492,90965.0,90964.0,0.24303761]
[1764430251338,0.00996492,90965.0,90964.0,0.24299761]
[1764430252526,0.42996492,90965.0,90964.0,0.05868711]
[1764430252834,0.42996492,90965.0,90964.0,0.01474711]
[1764430253041,0.42996492,90965.0,90964.0,0.03693711]
[1764430253633,0.42996492,90965.0,90964.0,0.05892711]
[1764430254441,0.43096492,90965.0,90964.0,0.05892711]
[1764430257438,0.43096492,90965.0,90964.0,0.01374711]
[1764430257643,0.0098,90961.0,90960.0,0.05793]
[1764430257845,0.4398,90961.0,90960.0,0.05793]
[1764430258744,0.0098,90956.0,90955.0,0.05793]
[1764430258942,0.4398,90956.0,90955.0,0.05793]
[1764430259851,0.4398,90956.0,90955.0,0.05893]
[1764430261648,0.4398,90956.0,90955.0,0.07216666]
[1764430262236,0.4398,90956.0,90955.0,0.08315826]
[1764430262541,0.4398,90956.0,90955.0,0.07216666]
[1764430262749,0.4398,90956.0,90955.0,0.01423666]
[1764430262943,0.8298,90956.0,90955.0,0.01423666]
[1764430265747,0.8298,90956.0,90955.0,0.01407088]
[1764430266450,0.0098,90947.0,90946.0,0.00016492]
[1764430266641,0.8798,90947.0,90946.0,0.00016492]
[1764430267349,0.5498,90947.0,90946.0,0.04534492]
[1764430267554,0.5498,90947.0,90946.0,0.04634492]
[1764430267555,0.4398,90947.0,90946.0,0.04634492]
[1764430268454,0.4398,90947.0,90946.0,0.04934492]
[1764430270150,0.8498,90947.0,90946.0,0.00416492]
[1764430270952,0.8498,90947.0,90946.0,0.01717951]
[1764430272448,0.8498,90947.0,90946.0,0.00772101]
[1764430272645,0.8498,90947.0,90930.0,0.15997179]
[1764430272646,0.0098,90931.0,90930.0,0.05829]
[1764430272954,0.3598,90931.0,90930.0,0.05829]
[1764430273659,0.0109946,90930.0,90925.0,0.0241052]
[1764430273855,0.0088,90926.0,90925.0,0.05765]
[1764430274056,0.3588,90926.0,90925.0,0.05765]
[1764430274450,0.3518,90926.0,90925.0,0.05765]
[1764430274854,0.3518,90926.0,90925.0,0.07084331]
[1764430275056,0.3528,90926.0,90925.0,0.07084331]
[1764430279571,0.7428,90926.0,90925.0,0.01319331]
[1764430279769,0.7428,90926.0,90920.0,0.05837]
[1764430279770,0.741,90926.0,90920.0,0.05837]
[1764430280270,0.0109957,90922.0,90920.0,0.05837]
[1764430280470,0.4209957,90922.0,90920.0,0.05837]
[1764430281465,0.4209957,90922.0,90921.0,0.04526]
[1764430281660,0.4249957,90922.0,90921.0,0.04526]
[1764430283273,0.414,90922.0,90921.0,0.04526]
[1764430283473,0.41,90922.0,90921.0,0.04526]
[1764430283675,0.415,90922.0,90921.0,0.04526]
[1764430284169,0.4259956,90922.0,90921.0,0.04526]
[1764430285567,0.415,90922.0,90921.0,0.04526]
[1764430286869,0.0109957,90921.0,90920.0,0.0130762]
[1764430287077,0.0109962,90917.0,90915.0,0.05837]
[1764430287378,0.4109962,90917.0,90915.0,0.05837]
[1764430287565,0.5709962,90917.0,90915.0,0.05837]
[1764430287766,0.8309962,90917.0,90915.0,0.05837]
[1764430288176,0.8339962,90917.0,90915.0,0.05837]
[1764430288474,0.7939962,90917.0,90915.0,0.05837]
[1764430288674,0.7939962,90917.0,90915.0,0.07131056]
[1764430290377,0.403,90917.0,90916.0,0.04526]
[1764430292772,0.0109943,90933.0,90932.0,0.04526]
[1764430292972,0.8009943,90933.0,90932.0,0.04526]
[1764430293685,0.79,90933.0,90932.0,0.04526]
[1764430293882,0.798,90933.0,90932.0,0.04626]
[1764430297686,0.798,90933.0,90932.0,0.0591413]
[1764430301589,0.458,90933.0,90932.0,0.0591413]
[1764430301897,0.408,90933.0,90932.0,0.0591413]
[1764430304694,0.008,90933.0,90932.0,0.0591413]
[1764430304899,0.048,90933.0,90932.0,0.0138813]
[1764430305792,0.048,90933.0,90932.0,0.0354613]
[1764430306000,0.008,90933.0,90932.0,0.0575813]
[1764430306302,0.048,90933.0,90932.0,0.0575813]
[1764430307299,0.008,90933.0,90932.0,0.0685757]
[1764430307693,0.008,90933.0,90932.0,0.0575813]
[1764430308093,0.048,90933.0,90932.0,0.0575813]
[1764430309001,0.008,90933.0,90932.0,0.0575813]
[1764430321314,0.00016492,90940.0,90939.0,0.0546935]
[1764430321508,0.0109907,90963.0,90962.0,0.0437]
[1764430321708,0.39,90963.0,90955.0,0.03461]
[1764430322011,0.4,90962.0,90941.0,0.07858413]
[1764430322213,0.0109923,90950.0,90949.0,0.0437]
[1764430322417,0.0109916,90956.0,90955.0,0.05673]
[1764430322715,0.4009916,90956.0,90955.0,0.05673]
[1764430323107,0.4009916,90956.0,90955.0,0.03461]
[1764430323414,0.0109921,90951.0,90945.0,0.05673]
[1764430323616,0.4109921,90951.0,90945.0,0.05673]
[1764430323910,0.0109926,90947.0,90945.0,0.03461]
[1764430324119,0.0109929,90945.0,90940.0,0.05689492]
[1764430324316,0.3809929,90945.0,90940.0,0.05689492]
[1764430324615,0.0109932,90942.0,90940.0,0.05689492]
[1764430324815,0.4509932,90942.0,90940.0,0.03477492]
[1764430325218,0.4509932,90942.0,90940.0,0.05689492]
[1764430325613,0.4509932,90942.0,90940.0,0.00016492]
[1764430326107,0.4519932,90942.0,90940.0,0.00016492]
[1764430327014,0.4569932,90942.0,90940.0,0.00016492]
[1764430329412,0.4569932,90942.0,90941.0,0.02212]
[1764430329611,0.4569932,90942.0,90941.0,0.0437]
[1764430332322,0.4569932,90942.0,90940.0,0.00016492]
[1764430333724,0.4519932,90942.0,90940.0,0.00016492]
[1764430333922,0.4569932,90942.0,90940.0,0.00016492]
[1764430337820,0.4569932,90942.0,90941.0,0.04561]
[1764430338319,0.216,90942.0,90941.0,0.0566033]
[1764430338919,0.006,90942.0,90941.0,0.0566033]
[1764430339316,0.001,90942.0,90941.0,0.0566033]
[1764430339517,0.006,90942.0,90941.0,0.0566033]
[1764430340020,0.006,90942.0,90941.0,0.04561]
[1764430340222,0.456,90942.0,90941.0,0.04561]
[1764430341122,0.186,90942.0,90941.0,0.04561]
[1764430341526,0.396,90942.0,90941.0,0.04561]
[1764430345324,0.396,90942.0,90941.0,0.02261]
[1764430345821,0.396,90942.0,90941.0,0.04552]
[1764430346524,0.0109933,90941.0,90940.0,0.00016492]
[1764430346727,0.3809933,90941.0,90940.0,0.00016492]
[1764430347629,0.3859933,90941.0,90940.0,0.00016492]
[1764430348631,0.3859933,90941.0,90940.0,0.02250492]
[1764430348830,0.3859933,90941.0,90940.0,0.04541492]
[1764430349017,0.374,90941.0,90940.0,0.04541492]
[1764430349221,0.415,90941.0,90940.0,0.04541492]
[1764430349429,0.145,90941.0,90940.0,0.04541492]
[1764430349627,0.146,90941.0,90940.0,0.04541492]
[1764430349829,0.145,90941.0,90940.0,0.04541492]
[1764430350128,0.146,90941.0,90940.0,0.04541492]
[1764430350527,0.406,90941.0,90940.0,0.04541492]
[1764430351131,0.176,90941.0,90940.0,0.04541492]
[1764430353628,0.006,90941.0,90940.0,0.04541492]
[1764430353829,0.396,90941.0,90940.0,0.04541492]
[1764430354625,0.396,90941.0,90940.0,0.05825492]
[1764430360134,0.086,90941.0,90940.0,0.05825492]
[1764430361136,0.286,90941.0,90940.0,0.05825492]
[1764430372247,0.286,90941.0,90940.0,0.00016492]
[1764430372443,0.286,90941.0,90940.0,0.02141492]
[1764430372633,0.286,90941.0,90940.0,0.04244492]
[1764430374437,0.006,90941.0,90940.0,0.04244492]
[1764430376541,0.006,90941.0,90940.0,0.12102905]
[1764430376847,0.006,90941.0,90940.0,0.04244492]
[1764430377941,0.005,90941.0,90940.0,0.04244492]
[1764430378642,0.14697746,90950.0,90949.0,0.04228]
[1764430378847,0.010992,90952.0,90950.0,0.05567]
[1764430379149,0.430992,90952.0,90950.0,0.05567]
[1764430380446,0.437992,90952.0,90950.0,0.05567]
[1764430382444,0.437992,90952.0,90951.0,0.04228]
[1764430383151,0.427,90952.0,90951.0,0.04228]
[1764430383650,0.437992,90952.0,90951.0,0.04228]
[1764430384046,0.427,90952.0,90951.0,0.04228]
[1764430384242,0.427,90952.0,90951.0,0.0532721]
[1764430384443,0.177,90952.0,90951.0,0.0532721]
[1764430384838,0.001,90952.0,90951.0,0.0532721]
[1764430385050,0.007,90952.0,90951.0,0.0532721]
[1764430385241,0.07843865,90992.0,90951.0,0.0532721]
[1764430385242,0.0109886,90980.0,90958.0,0.0532713]